bitfinex/quotes_SOLUSD_20220311
["timestamp","ask_amount","ask_price","bid_price","bid_amount"]
[1647013728592,122.5,81.688,81.601,22.6593]
[1647013728792,27.56901716,81.689,81.601,22.6593]
[1647013728992,59.52282348,81.687,81.602,51.09783657]
[1647013730094,18.3699,81.68,81.62,18.3715]
[1647013730293,122.5,81.679,81.602,51.09783657]
[1647013730494,153.11349673,81.679,81.601,22.6593]
[1647013730699,198.334234,81.679,81.601,22.6593]
[1647013730894,122.5,81.677,81.601,22.6593]
[1647013731093,122.5,81.677,81.57,18.4999]
[1647013731296,14.42,81.68,81.56,14.42]
[1647013731297,73.46,81.672,81.571,23.8326]
[1647013731495,122.5,81.657,81.579,59.60118392]
[1647013731894,75.834234,81.656,81.579,59.60118392]
[1647013732094,75.834234,81.656,81.571,23.8326]
[1647013732297,75.678234,81.655,81.571,23.8326]
[1647013732697,122.5,81.653,81.571,23.8326]
[1647013732896,122.5,81.639,81.571,23.8326]
[1647013733097,122.5,81.637,81.571,23.8326]
[1647013733696,122.5,81.635,81.571,23.8326]
[1647013733897,122.5,81.629,81.571,23.8326]
[1647013734297,3.04447957,81.628,81.571,23.8326]
[1647013734797,169.39824032,81.627,81.571,23.8326]
[1647013734998,18.386,81.62,81.571,23.8326]
[1647013735597,8.35169583,81.619,81.571,23.8326]
[1647013735800,8.35169583,81.619,81.565,54.13036855]
[1647013736901,8.35169583,81.619,81.57,18.3831]
[1647013740103,3.04447957,81.637,81.57,18.3831]
[1647013740306,144.15011931,81.67,81.57,18.3831]
[1647013740504,17.23188982,81.662,81.571,24.5426]
[1647013740704,17.23188982,81.662,81.59,18.3773]
[1647013741006,33.44767292,81.661,81.591,53.18943822]
[1647013741206,18.3769,81.65,81.572,3.04447957]
[1647013741505,18.3769,81.65,81.571,24.5426]
[1647013741807,152.1663505,81.649,81.571,24.5426]
[1647013742005,155.21083007,81.649,81.571,24.5426]
[1647013742205,18.3854,81.63,81.571,24.5426]
[1647013742405,28.38663296,81.629,81.571,24.5426]
[1647013742606,122.5,81.628,81.571,24.5426]
[1647013742906,155.21083007,81.628,81.571,24.5426]
[1647013743105,155.21083007,81.627,81.571,24.5426]
[1647013743306,18.3866,81.62,81.553,24.135]
[1647013743807,32.71083007,81.619,81.553,24.135]
[1647013744207,3.04447957,81.618,81.553,24.135]
[1647013744407,18.3883,81.6,81.555,54.50878711]
[1647013744609,11.91886919,81.599,81.555,54.50878711]
[1647013746210,11.91886919,81.599,81.55,18.3876]
[1647013746609,18.3889,81.59,81.55,18.3876]
[1647013746809,11.91886919,81.599,81.55,18.3876]
[1647013749011,18.3895,81.59,81.541,23.7209]
[1647013750612,18.3895,81.59,81.531,22.5185]
[1647013750813,125.54447957,81.589,81.531,22.5185]
[1647013751015,122.5,81.579,81.516,22.9738]
[1647013751214,122.5,81.577,81.516,22.9738]
[1647013751815,3.04447957,81.576,81.516,22.9738]
[1647013752617,3.04447957,81.576,81.513,0.04398742]
[1647013753017,18.3984,81.57,81.513,0.04398742]
[1647013760620,18.3984,81.57,81.52,18.3947]
[1647013760820,18.3984,81.57,81.518,47.83810785]
[1647013761022,18.3984,81.57,81.513,0.04398742]
[1647013761623,18.3984,81.57,81.52,18.3943]
[1647013763423,18.3984,81.57,81.513,0.04398742]
[1647013765724,18.3984,81.57,81.52,18.3945]
[1647013766326,28.38663296,81.578,81.52,18.3945]
[1647013766951,28.38663296,81.578,81.521,58.74050341]
[1647013767155,28.38663296,81.578,81.53,18.3891]
[1647013767953,28.38663296,81.578,81.521,58.74050341]
[1647013768552,18.3937,81.57,81.513,0.04398742]
[1647013773459,31.43111253,81.578,81.513,0.04398742]
[1647013773660,28.38663296,81.578,81.513,0.04398742]
[1647013773863,28.38663296,81.578,81.52,18.394]
[1647013775662,18.3916,81.58,81.52,18.394]
[1647013775864,24.4818,81.607,81.521,125.54447957]
[1647013776063,24.4818,81.607,81.54,18.3869]
[1647013776262,24.4818,81.607,81.541,24.8504]
[1647013776462,18.3877,81.6,81.541,24.8504]
[1647013776862,32.83187429,81.599,81.541,24.8504]
[1647013777064,32.83187429,81.599,81.55,18.3868]
[1647013780364,22.7579,81.635,81.55,18.3868]
[1647013780664,3.04447957,81.653,81.57,18.3773]
[1647013781063,24.7394,81.659,81.57,18.3773]
[1647013781264,3.04447957,81.655,81.571,57.9523463]
[1647013781468,18.3756,81.65,81.572,46.7243]
[1647013781670,18.3756,81.65,81.59,18.3765]
[1647013781868,18.3756,81.65,81.591,57.42895369]
[1647013783171,18.3756,81.65,81.6,18.3754]
[1647013783771,18.3756,81.65,81.592,23.8184]
[1647013784174,3.04447957,81.655,81.6,18.3755]
[1647013784370,3.04447957,81.649,81.6,18.3755]
[1647013784970,3.04447957,81.649,81.592,23.8184]
[1647013786274,18.3788,81.64,81.592,23.8184]
[1647013786673,6.97116235,81.639,81.592,23.8184]
[1647013787274,6.97116235,81.639,81.601,55.74102139]
[1647013787474,24.7394,81.659,81.601,55.74102139]
[1647013787676,3.04447957,81.66,81.601,55.74102139]
[1647013788476,38.35269382,81.659,81.6,18.3749]
[1647013788677,18.3765,81.65,81.6,18.3749]
[1647013790782,18.3765,81.65,81.592,23.8184]
[1647013790981,18.3818,81.63,81.579,55.65906373]
[1647013791186,1.95280833,81.629,81.579,55.65906373]
[1647013792284,1.95280833,81.629,81.58,18.3804]
[1647013795210,18.3824,81.62,81.529,5.81483962]
[1647013795409,18.3824,81.62,81.553,23.2472]
[1647013795609,18.3824,81.62,81.542,23.6704]
[1647013795610,122.5,81.619,81.542,23.6704]
[1647013796008,122.5,81.617,81.542,23.6704]
[1647013796209,122.5,81.615,81.542,23.6704]
[1647013796411,11.69257222,81.599,81.542,23.6704]
[1647013797410,11.69257222,81.599,81.521,23.2472]
[1647013797612,18.3897,81.59,81.53,18.3917]
[1647013799312,18.3897,81.59,81.53,74.22258149]
[1647013800712,11.69257222,81.599,81.53,74.22258149]
[1647013800913,11.69257222,81.599,81.531,24.2764]
[1647013801113,11.69257222,81.599,81.55,18.3876]
[1647013801516,11.69257222,81.599,81.531,24.2764]
[1647013801916,18.3892,81.59,81.531,24.2764]
[1647013804219,18.3892,81.59,81.541,58.05253301]
[1647013804420,11.69257222,81.599,81.541,58.05253301]
[1647013805220,11.69257222,81.599,81.55,18.3873]
[1647013806024,23.4218,81.616,81.55,18.3873]
[1647013806424,23.191,81.628,81.55,18.3873]
[1647013807123,37.23890565,81.627,81.55,18.3873]
[1647013808326,18.3825,81.62,81.55,18.3873]
[1647013812832,37.23890565,81.627,81.55,18.3873]
[1647013813237,3.04447957,81.636,81.552,5.66895542]
[1647013813434,3.04447957,81.648,81.58,18.3753]
[1647013814234,40.10980107,81.647,81.581,71.36175231]
[1647013814634,69.77741864,81.647,81.581,71.36175231]
[1647013814836,18.3778,81.64,81.581,71.36175231]
[1647013815639,40.10980107,81.647,81.59,18.3771]
[1647013816738,3.04447957,81.67,81.59,18.3771]
[1647013816938,3.04447957,81.67,81.591,24.5044]
[1647013817139,29.66761757,81.674,81.61,18.3712]
[1647013817338,61.2532,81.67,81.601,24.5044]
[1647013817838,68.22657509,81.669,81.602,58.01324326]
[1647013818038,68.22657509,81.669,81.601,24.5044]
[1647013818240,29.66761757,81.668,81.601,24.5044]
[1647013818438,18.3732,81.66,81.601,24.5044]
[1647013818842,122.5,81.658,81.571,23.5619]
[1647013819040,122.5,81.658,81.573,65.96136571]
[1647013819041,122.5,81.649,81.573,65.96136571]
[1647013819264,1.74654463,81.648,81.573,65.96136571]
[1647013821066,18.3831,81.64,81.573,65.96136571]
[1647013821267,122.5,81.639,81.573,65.96136571]
[1647013821466,125.54447957,81.639,81.573,65.96136571]
[1647013821666,3.04447957,81.639,81.573,65.96136571]
[1647013822066,18.3836,81.62,81.573,65.96136571]
[1647013822266,28.43290525,81.619,81.573,65.96136571]
[1647013824169,23.0548,81.639,81.573,65.96136571]
[1647013824368,23.0548,81.639,81.574,23.9074]
[1647013825271,31.24787115,81.638,81.58,18.3801]
[1647013828071,18.3802,81.63,81.58,18.3801]
[1647013829771,31.24787115,81.638,81.58,18.3801]
[1647013831775,31.24787115,81.638,81.58,21.42457957]
[1647013832275,14.42,81.68,81.61,18.3698]
[1647013832475,18.3691,81.68,81.611,24.7049]
[1647013833275,30.6562715,81.679,81.612,52.15313212]
[1647013833479,30.6562715,81.679,81.62,18.3701]
[1647013833676,30.6562715,81.679,81.612,52.15313212]
[1647013833877,18.3717,81.67,81.611,24.7049]
[1647013835481,30.6562715,81.679,81.611,24.7049]
[1647013835682,30.6562715,81.679,81.621,57.79065094]
[1647013837683,30.6562715,81.679,81.63,18.3699]
[1647013845989,23.5298,81.699,81.63,18.3699]
[1647013847088,34.92107662,81.698,81.63,18.3699]
[1647013849596,23.5298,81.699,81.63,18.3699]
[1647013849996,18.3628,81.71,81.631,122.5]
[1647013850293,22.9657,81.711,81.65,18.3598]
[1647013850493,22.9657,81.711,81.651,23.6915]
[1647013850692,30.89698789,81.712,81.651,70.5875215]
[1647013851703,30.89698789,81.712,81.652,122.5]
[1647013851900,18.3584,81.73,81.66,61.1927]
[1647013852096,18.3584,81.73,81.661,23.6915]
[1647013852797,18.3584,81.73,81.68,18.3568]
[1647013853029,22.9075,81.749,81.661,23.6915]
[1647013853030,1.62751353,81.751,81.663,122.5]
[1647013853221,1.62751353,81.751,81.662,24.491]
[1647013853222,23.68224424,81.76,81.67,163.78019091]
[1647013853423,23.8617,81.764,81.672,122.5]
[1647013853622,1.62751353,81.776,81.673,5.86361294]
[1647013853924,31.01115689,81.801,81.673,5.86361294]
[1647013853925,29.01974744,81.775,81.73,18.344]
[1647013854123,1.62751353,81.78,81.72,61.1475]
[1647013854320,1.62751353,81.786,81.721,23.78]
[1647013854521,1.62751353,81.791,81.721,23.78]
[1647013854722,1.62751353,81.793,81.721,23.78]
[1647013854921,1.62751353,81.797,81.721,23.78]
[1647013855121,1.62751353,81.798,81.722,47.51424793]
[1647013855522,18.3434,81.8,81.723,24.491]
[1647013856122,23.8617,81.801,81.724,122.5]
[1647013857124,23.8617,81.801,81.751,65.24584835]
[1647013857325,18.3409,81.81,81.751,65.24584835]
[1647013857725,122.5,81.816,81.731,24.1693]
[1647013857936,73.46,81.803,81.7,14.42]
[1647013858125,195.96,81.8,81.695,24.1693]
[1647013858327,122.5,81.799,81.695,24.1693]
[1647013858527,23.78072396,81.8,81.695,24.1693]
[1647013858729,37.29867794,81.799,81.724,53.37639398]
[1647013858929,46.22987487,81.798,81.724,53.37639398]
[1647013859132,38.63025099,81.798,81.724,175.87639398]
[1647013859331,14.84952703,81.798,81.761,46.53549398]
[1647013859528,14.84952703,81.812,81.761,46.53549398]
[1647013859730,1.62751353,81.822,81.761,53.02549398]
[1647013860129,14.85232962,81.827,81.761,53.02549398]
[1647013860529,37.40936388,81.824,81.761,53.02549398]
[1647013861135,37.40936388,81.824,81.761,46.53549398]
[1647013862036,73.46,81.816,81.707,4.16604466]
[1647013862234,122.5,81.809,81.712,48.2896]
[1647013862436,22.9814,81.808,81.712,48.2896]
[1647013862838,63.34993933,81.808,81.712,48.2896]
[1647013863037,14.85232962,81.807,81.714,122.5]
[1647013863436,14.85232962,81.807,81.74,18.3407]
[1647013863636,14.85232962,81.807,81.742,65.064156]
[1647013864238,18.3431,81.8,81.742,65.064156]
[1647013864436,2.89613827,81.799,81.742,65.064156]
[1647013865841,22.9814,81.808,81.742,65.064156]
[1647013866844,28.95981753,81.807,81.742,65.064156]
[1647013868544,28.95981753,81.807,81.742,65.02857317]
[1647013869144,18.3434,81.8,81.742,65.02857317]
[1647013869544,18.3434,81.8,81.741,23.1642]
[1647013870546,28.95981753,81.807,81.742,65.2423925]
[1647013872849,18.3431,81.8,81.742,65.2423925]
[1647013876154,18.3431,81.8,81.741,23.1642]
[1647013877157,18.3431,81.8,81.742,48.66783307]
[1647013879375,22.9814,81.808,81.742,48.66783307]
[1647013879880,3.04447957,81.807,81.742,48.66783307]
[1647013880075,122.5,81.805,81.742,48.66783307]
[1647013880275,122.5,81.803,81.742,48.66783307]
[1647013880474,32.7627,81.8,81.742,48.66783307]
[1647013880676,31.12712181,81.804,81.742,48.66783307]
[1647013881175,28.08264224,81.804,81.742,48.66783307]
[1647013881376,28.08264224,81.804,81.75,18.3405]
[1647013881577,32.30541599,81.807,81.75,18.3405]
[1647013882180,1.62751353,81.805,81.75,18.3405]
[1647013882580,1.62751353,81.806,81.75,18.3405]
[1647013882778,1.62751353,81.807,81.75,18.3405]
[1647013882977,1.62751353,81.806,81.75,18.3405]
[1647013883180,37.70626204,81.805,81.75,18.3405]
[1647013883379,1.62751353,81.806,81.76,18.3394]
[1647013883779,1.62751353,81.806,81.744,23.3995]
[1647013883981,1.62751353,81.804,81.744,23.3995]
[1647013884180,1.62751353,81.803,81.744,23.3995]
[1647013884382,35.35985985,81.802,81.744,23.3995]
[1647013884582,36.98737338,81.802,81.744,23.3995]
[1647013884786,18.3419,81.8,81.744,23.3995]
[1647013884981,19.96941353,81.8,81.744,23.3995]
[1647013885383,1.62751353,81.799,81.744,23.3995]
[1647013885583,1.62751353,81.802,81.744,23.3995]
[1647013885783,18.3419,81.8,81.744,23.3995]
[1647013887292,1.62751353,81.809,81.744,23.3995]
[1647013887487,1.62751353,81.817,81.745,3.04447957]
[1647013887688,1.62751353,81.82,81.745,3.04447957]
[1647013887886,1.62751353,81.822,81.745,3.04447957]
[1647013888287,1.62751353,81.826,81.745,3.04447957]
[1647013888488,1.62751353,81.826,81.761,122.5]
[1647013888686,42.1805,81.859,81.746,31.04319531]
[1647013888687,3.27926785,81.856,81.763,128.00350453]
[1647013888886,3.27926785,81.877,81.771,122.5]
[1647013889090,13.381695,81.913,81.77,14.42]
[1647013889091,3.27926785,81.892,81.774,5.2462646]
[1647013889288,3.27926785,81.893,81.783,122.5]
[1647013889587,7.0,81.913,81.775,0.25]
[1647013889588,1.66972662,81.875,81.86,61.0371]
[1647013889787,3.27926785,81.898,81.86,61.0371]
[1647013889989,3.27926785,81.911,81.831,122.5]
[1647013890186,3.27926785,81.912,81.833,125.54447957]
[1647013890388,6.69563974,81.91,81.834,172.26318706]
[1647013890586,9.97490759,81.911,81.834,172.26318706]
[1647013890786,3.27926785,81.911,81.835,5.13454784]
[1647013890985,3.27926785,81.917,81.86,18.313]
[1647013891186,3.27926785,81.917,81.86,24.913]
[1647013891787,3.27926785,81.917,81.861,55.2588717]
[1647013891989,3.27926785,81.921,81.861,55.2588717]
[1647013892388,3.27926785,81.92,81.861,55.2588717]
[1647013892593,9.97490759,81.92,81.861,55.2588717]
[1647013892789,3.27926785,81.92,81.861,55.2588717]
[1647013893188,3.27926785,81.923,81.861,55.2588717]
[1647013893490,3.27926785,81.923,81.87,18.3127]
[1647013893690,3.27926785,81.922,81.87,18.3127]
[1647013893889,6.69563974,81.922,81.87,18.3127]
[1647013894090,3.27926785,81.924,81.87,18.3127]
[1647013894290,3.27926785,81.948,81.87,18.3127]
[1647013894490,125.77926785,81.955,81.87,18.3127]
[1647013894690,3.27926785,81.955,81.87,18.3127]
[1647013894890,18.3127,81.94,81.87,18.3127]
[1647013896493,28.01266949,81.94,81.87,18.3127]
[1647013896894,18.3147,81.93,81.861,55.2588717]
[1647013900096,122.5,81.929,81.861,55.2588717]
[1647013900696,122.5,81.919,81.861,55.2588717]
[1647013900897,91.7848,81.92,81.861,55.2588717]
[1647013901096,73.46,81.92,81.861,55.2588717]
[1647013902299,122.5,81.919,81.861,55.2588717]
[1647013902701,122.5,81.919,81.811,24.6926]
[1647013902906,38.94706397,81.924,81.811,24.6926]
[1647013903101,122.5,81.919,81.812,122.5]
[1647013903401,122.5,81.909,81.811,24.6926]
[1647013903700,122.5,81.907,81.832,46.46352091]
[1647013903900,122.5,81.901,81.832,46.46352091]
[1647013904101,122.5,81.899,81.832,46.46352091]
[1647013904499,18.3256,81.9,81.832,46.46352091]
[1647013906400,122.5,81.899,81.832,46.46352091]
[1647013907201,32.7456,81.9,81.832,46.46352091]
[1647013911106,122.5,81.899,81.832,46.46352091]
[1647013912110,106.2056,81.9,81.832,46.46352091]
[1647013912407,122.5,81.899,81.832,46.46352091]
[1647013912609,106.2056,81.9,81.832,46.46352091]
[1647013913135,122.5,81.899,81.832,46.46352091]
[1647013914036,32.7456,81.9,81.832,46.46352091]
[1647013914236,122.5,81.899,81.832,46.46352091]
[1647013915139,32.7456,81.9,81.832,46.46352091]
[1647013915338,18.3256,81.9,81.832,46.46352091]
[1647013915539,9.69996949,81.908,81.832,46.46352091]
[1647013915941,94.0456,81.93,81.832,46.46352091]
[1647013916137,3.7231,81.926,81.832,46.46352091]
[1647013916338,94.0456,81.93,81.832,51.93352091]
[1647013916744,18.3178,81.92,81.86,18.3172]
[1647013916941,18.3178,81.92,81.861,54.63889009]
[1647013917143,0.15,81.933,81.861,54.63889009]
[1647013917343,0.15,81.933,81.862,49.085]
[1647013918143,18.3139,81.93,81.87,18.3147]
[1647013918343,122.5,81.929,81.862,49.085]
[1647013918546,91.7739,81.93,81.862,49.085]
[1647013919145,18.3139,81.93,81.862,49.085]
[1647013919745,122.5,81.929,81.862,49.085]
[1647013923046,122.5,81.925,81.862,49.085]
[1647013924848,8.36609527,81.926,81.862,49.085]
[1647013925048,6.69281575,81.925,81.862,49.085]
[1647013925451,129.19281575,81.925,81.862,49.085]
[1647013925653,8.36609527,81.926,81.862,49.085]
[1647013925654,6.69281575,81.924,81.862,49.085]
[1647013925851,6.69281575,81.925,81.862,49.085]
[1647013926049,122.5,81.924,81.862,49.085]
[1647013926450,8.36609527,81.926,81.862,49.085]
[1647013926649,6.69281695,81.925,81.862,49.085]
[1647013927052,129.19281695,81.925,81.862,49.085]
[1647013927250,6.69281695,81.924,81.862,49.085]
[1647013927451,6.69281695,81.925,81.862,49.085]
[1647013928251,129.19281695,81.925,81.862,49.085]
[1647013928652,6.69281695,81.924,81.862,49.085]
[1647013929251,129.19281695,81.925,81.862,49.085]
[1647013929451,6.69281695,81.924,81.862,49.085]
[1647013929653,6.69281695,81.925,81.862,49.085]
[1647013929953,6.69281695,81.929,81.862,49.085]
[1647013930153,18.3139,81.93,81.862,49.085]
[1647013930352,6.69236079,81.929,81.862,49.085]
[1647013930752,44.86070181,81.928,81.862,49.085]
[1647013931755,6.69240153,81.927,81.862,49.085]
[1647013932354,122.5,81.926,81.862,49.085]
[1647013932554,122.5,81.924,81.862,49.085]
[1647013932854,122.5,81.919,81.862,49.085]
[1647013934153,144.67178007,81.919,81.862,49.085]
[1647013934755,163.26908007,81.919,81.862,49.085]
[1647013935156,73.46,81.91,81.846,65.90324755]
[1647013935357,122.5,81.897,81.846,65.90324755]
[1647013936356,35.0720049,81.898,81.846,65.90324755]
[1647013936756,122.5,81.897,81.846,65.90324755]
[1647013936959,35.0720049,81.898,81.846,65.90324755]
[1647013937356,35.0720049,81.898,81.811,45.6661]
[1647013937656,122.5,81.897,81.811,45.6661]
[1647013938156,122.5,81.897,81.83,18.3236]
[1647013938356,122.5,81.897,81.831,87.19344469]
[1647013939182,122.5,81.897,81.798,3.04447957]
[1647013939358,195.96,81.879,81.787,23.6002]
[1647013939562,195.96,81.869,81.787,23.6002]
[1647013939862,122.5,81.859,81.787,23.6002]
[1647013940059,14.42,81.85,81.787,23.6002]
[1647013940258,14.42,81.85,81.788,46.90601789]
[1647013940459,18.3352,81.84,81.788,46.90601789]
[1647013941468,35.27915858,81.839,81.788,46.90601789]
[1647013941663,122.5,81.838,81.788,46.90601789]
[1647013941864,13.57502856,81.829,81.788,46.90601789]
[1647013942064,13.57502856,81.829,81.777,22.7647]
[1647013942262,35.27915858,81.828,81.777,22.7647]
[1647013942560,28.69414007,81.827,81.75,18.3399]
[1647013942760,49.03232617,81.827,81.753,45.081]
[1647013942962,35.27915858,81.826,81.753,45.081]
[1647013943263,55.61734468,81.826,81.754,46.85516838]
[1647013943661,35.27915858,81.825,81.754,46.85516838]
[1647013944262,20.3381861,81.826,81.76,18.3384]
[1647013944461,13.57502856,81.829,81.76,18.3384]
[1647013945363,13.57502856,81.829,81.77,18.3358]
[1647013945564,13.57502856,81.829,81.771,49.26587196]
[1647013945762,18.3414,81.83,81.771,49.26587196]
[1647013946700,37.80223311,81.829,81.771,49.26587196]
[1647013946867,58.13374902,81.829,81.771,49.26587196]
[1647013947064,35.27915858,81.828,81.771,49.26587196]
[1647013947272,55.61067449,81.828,81.771,49.26587196]
[1647013947465,20.33151591,81.827,81.771,49.26587196]
[1647013947668,55.61067449,81.827,81.753,45.081]
[1647013947866,35.27915858,81.826,81.753,45.081]
[1647013948069,55.61067449,81.826,81.753,45.081]
[1647013948266,122.5,81.825,81.753,45.081]
[1647013948466,181.15515406,81.825,81.753,45.081]
[1647013948666,122.5,81.823,81.754,52.10519396]
[1647013949065,122.5,81.821,81.754,52.10519396]
[1647013949271,122.5,81.819,81.753,45.081]
[1647013949474,122.5,81.819,81.721,24.3951]
[1647013949673,195.96,81.809,81.722,49.2062]
[1647013950174,122.5,81.799,81.723,62.4586544]
[1647013950373,73.46,81.807,81.723,62.4586544]
[1647013950374,122.5,81.789,81.723,62.4586544]
[1647013950575,35.6947427,81.788,81.723,62.4586544]
[1647013950774,18.3511,81.78,81.723,62.4586544]
[1647013956305,43.11414007,81.81,81.724,122.5]
[1647013956503,28.69414007,81.81,81.724,122.5]
[1647013956901,28.69414007,81.81,81.723,62.4586544]
[1647013957200,84.42847944,81.809,81.723,62.4586544]
[1647013957400,102.8618523,81.809,81.723,62.4586544]
[1647013957603,189.51777822,81.808,81.723,62.4586544]
[1647013957802,207.95115108,81.808,81.723,62.4586544]
[1647013958003,122.5,81.806,81.723,62.4586544]
[1647013958202,73.46,81.805,81.723,62.4586544]
[1647013958401,122.5,81.794,81.723,62.4586544]
[1647013958601,125.04219217,81.79,81.723,62.4586544]
[1647013959002,122.5,81.788,81.723,62.4586544]
[1647013959404,122.5,81.779,81.722,49.2062]
[1647013959905,122.5,81.777,81.722,49.2062]
[1647013960305,4.72,81.779,81.722,49.2062]
[1647013960306,122.5,81.769,81.722,49.2062]
[1647013960506,122.5,81.769,81.702,55.39673431]
[1647013960705,122.5,81.767,81.702,55.39673431]
[1647013960906,122.5,81.767,81.69,18.3555]
[1647013961207,122.5,81.765,81.691,24.592]
[1647013961406,82.40667151,81.766,81.691,24.592]
[1647013961407,122.5,81.749,81.691,24.592]
[1647013962007,2.54219217,81.748,81.692,57.92681503]
[1647013962507,18.3595,81.74,81.692,57.92681503]
[1647013968818,122.5,81.739,81.691,24.592]
[1647013969216,122.5,81.739,81.672,24.8179]
[1647013969217,18.3627,81.73,81.672,24.8179]
[1647013969825,39.64159966,81.729,81.673,63.79183789]
[1647013970224,122.5,81.728,81.672,24.8179]
[1647013970423,154.23861964,81.728,81.672,24.8179]
[1647013970626,122.5,81.726,81.662,24.3621]
[1647013971025,73.46,81.717,81.631,23.2286]
[1647013971223,131.5054338,81.71,81.632,63.9352359]
[1647013971427,131.5054338,81.71,81.631,23.2286]
[1647013971428,73.46,81.709,81.631,23.2286]
[1647013971626,73.46,81.705,81.58,61.2506]
[1647013971828,14.42,81.69,81.57,14.42]
[1647013972027,195.96,81.689,81.59,47.5208]
[1647013972227,122.5,81.669,81.59,47.5208]
[1647013972430,129.09,81.669,81.591,60.80978109]
[1647013972629,129.09,81.669,81.59,47.5208]
[1647013972962,195.96,81.661,81.59,47.5208]
[1647013973161,122.5,81.659,81.59,23.2617]
[1647013973357,122.5,81.649,81.56,18.3842]
[1647013973557,122.5,81.647,81.561,58.24388971]
[1647013975058,9.0054338,81.648,81.561,58.24388971]
[1647013975258,18.382,81.64,81.57,18.3818]
[1647013976059,14.42,81.67,81.571,122.5]
[1647013976261,18.3735,81.67,81.6,18.3722]
[1647013976461,18.3735,81.67,81.573,23.1547]
[1647013976660,32.7935,81.67,81.573,23.1547]
[1647013976859,3.04447957,81.669,81.573,23.1547]
[1647013977064,122.5,81.659,81.574,51.52907681]
[1647013977465,18.3837,81.65,81.574,51.52907681]
[1647013977661,0.9763489,81.649,81.574,51.52907681]
[1647013977862,0.9763489,81.649,81.574,174.02907681]
[1647013978062,0.9763489,81.649,81.574,51.52907681]
[1647013978462,3.04447957,81.669,81.581,122.5]
[1647013978662,14.42,81.69,81.581,129.59]
[1647013978862,3.04447957,81.684,81.581,129.59]
[1647013979061,3.04447957,81.684,81.582,3.04447957]
[1647013979462,48.09639756,81.683,81.582,3.04447957]
[1647013979862,3.04447957,81.684,81.6,18.3709]
[1647013980064,3.04447957,81.694,81.6,18.3709]
[1647013980263,3.04447957,81.694,81.601,146.6401]
[1647013980469,21.65697957,81.704,81.602,4.47653575]
[1647013980769,29.5876734,81.693,81.603,23.6254]
[1647013980968,29.5876734,81.693,81.604,47.04783704]
[1647013981167,18.3702,81.69,81.604,47.04783704]
[1647013981366,0.88640854,81.689,81.604,47.04783704]
[1647013981567,33.51856151,81.689,81.604,47.04783704]
[1647013981769,32.63215297,81.688,81.604,47.04783704]
[1647013982167,32.63215297,81.687,81.604,47.04783704]
[1647013982466,32.63215297,81.686,81.604,47.04783704]
[1647013982868,3.04447957,81.685,81.604,47.04783704]
[1647013983067,18.3731,81.67,81.61,18.3728]
[1647013983369,46.28038198,81.669,81.61,18.3728]
[1647013985768,18.3731,81.67,81.61,18.3728]
[1647013985974,3.04447957,81.698,81.61,18.3728]
[1647013986770,189.64306593,81.697,81.61,18.3728]
[1647013987172,122.5,81.695,81.61,18.3728]
[1647013987370,18.3685,81.69,81.61,18.3728]
[1647013988074,122.5,81.688,81.61,18.3728]
[1647013988477,122.5,81.686,81.61,18.3728]
[1647013988872,18.3733,81.67,81.604,47.04783704]
[1647013989072,11.09164093,81.669,81.604,47.04783704]
[1647013989273,14.1361205,81.669,81.604,47.04783704]
[1647013989472,3.04447957,81.668,81.604,47.04783704]
[1647013990874,18.3768,81.66,81.603,23.6254]
[1647013991378,122.5,81.658,81.603,23.6254]
[1647013991775,3.04447957,81.657,81.603,23.6254]
[1647013991974,18.3797,81.65,81.603,23.6254]
[1647013993978,36.6365,81.65,81.603,23.6254]
[1647013995479,18.3797,81.65,81.603,23.6254]
[1647013997782,37.55539253,81.656,81.603,23.6254]
[1647013998885,18.3763,81.65,81.603,23.6254]
[1647014000783,18.384,81.62,81.519,18.6841]
[1647014000984,18.384,81.62,81.559,47.3107]